bitfinex-derivatives/quotes_SOLF0:USTF0_20260304
["timestamp","ask_amount","ask_price","bid_price","bid_amount"]
[1772638503675,9.781,92.002,91.951,28.53915519]
[1772638503875,28.81512017,92.019,91.928,28.53915519]
[1772638504171,152.067,92.053,91.928,28.53915519]
[1772638504172,28.81512017,92.031,91.928,28.53915519]
[1772638504475,28.81512017,92.054,91.951,28.53915519]
[1772638504673,28.81512017,92.039,91.951,28.53915519]
[1772638504976,9.778,92.03,91.951,28.53915519]
[1772638505165,28.81512017,92.039,91.951,28.53915519]
[1772638506168,28.81512017,92.039,91.964,9.785]
[1772638506370,28.81512017,92.039,91.965,28.53915519]
[1772638507271,9.777,92.038,91.965,28.53915519]
[1772638507470,28.81512017,92.037,91.965,28.53915519]
[1772638507676,28.81512017,92.019,91.919,28.53915519]
[1772638507876,28.81512017,91.998,91.923,9.789]
[1772638508077,28.81512017,91.998,91.919,28.53915519]
[1772638509089,28.81512017,91.979,91.897,28.53915519]
[1772638509589,28.81512017,91.979,91.902,9.791]
[1772638509985,28.81512017,91.979,91.897,28.53915519]
[1772638510291,28.81512017,91.979,91.88,7.27870712]
[1772638510292,9.782,91.99,91.91,28.53915519]
[1772638510886,7.27870712,92.02,91.92,7.27870712]
[1772638511092,28.81512017,92.023,91.921,28.53915519]
[1772638511289,28.81512017,92.048,91.961,28.53915519]
[1772638511485,28.81512017,92.039,91.961,28.53915519]
[1772638511886,28.81512017,92.033,91.961,28.53915519]
[1772638512090,7.27870712,92.02,91.94,28.53915519]
[1772638512288,28.81512017,92.019,91.94,28.53915519]
[1772638512489,28.81512017,92.019,91.918,28.53915519]
[1772638512691,28.81512017,91.996,91.918,28.53915519]
[1772638512993,28.81512017,92.018,91.918,28.53915519]
[1772638513192,28.81512017,92.009,91.918,28.53915519]
[1772638513694,28.81512017,92.009,91.93,28.53915519]
[1772638514190,9.78,92.008,91.931,9.788]
[1772638514390,7.27870712,92.01,91.931,9.788]
[1772638514391,28.81512017,92.007,91.931,9.788]
[1772638514590,10.0762314,92.1,91.93,28.53915519]
[1772638514591,36.09382729,92.03,91.93,28.53915519]
[1772638514793,28.81512017,92.029,91.93,28.53915519]
[1772638514992,28.81512017,92.029,91.952,9.786]
[1772638515395,28.81512017,92.029,91.962,9.785]
[1772638515597,28.81512017,92.049,91.963,28.53915519]
[1772638515785,7.27870712,92.1,91.963,28.53915519]
[1772638515786,7.27870712,92.07,91.963,28.53915519]
[1772638515990,9.774,92.063,91.986,9.782]
[1772638516191,28.81512017,92.069,91.985,28.53915519]
[1772638516391,7.27870712,92.09,92.001,28.53915519]
[1772638516592,9.772,92.085,92.016,9.779]
[1772638516787,28.81512017,92.092,92.017,28.53915519]
[1772638516989,7.27870712,92.11,92.021,28.53915519]
[1772638517191,28.81512017,92.106,92.021,28.53915519]
[1772638517394,7.27870712,92.08,92.001,28.53915519]
[1772638517793,7.27870712,92.08,92.001,38.32015519]
[1772638517994,7.27870712,92.08,92.001,28.53915519]
[1772638518789,9.773,92.071,92.003,9.78]
[1772638518994,7.27870712,92.08,92.001,28.53915519]
[1772638519192,7.27870712,92.06,91.971,29.95628297]
[1772638519397,7.27870712,92.06,91.985,9.782]
[1772638519795,7.27870712,92.06,91.938,19.575]
[1772638519796,7.27870712,92.08,91.986,29.95628297]
[1772638519991,27.44855981,92.09,92.024,9.778]
[1772638520196,27.44855981,92.09,92.017,29.95628297]
[1772638521396,7.27870712,92.08,91.995,29.95628297]
[1772638521700,27.44855981,92.079,91.995,29.95628297]
[1772638522201,9.775,92.057,91.995,29.95628297]
[1772638522696,7.27870712,92.06,91.995,29.95628297]
[1772638523398,9.776,92.047,91.995,29.95628297]
[1772638523599,27.44855981,92.079,91.995,29.95628297]
[1772638524098,7.27870712,92.06,91.995,29.95628297]
[1772638524300,27.12140166,92.059,91.961,28.09243669]
[1772638524497,7.27870712,92.08,91.98,7.27870712]
[1772638524703,7.27870712,92.08,92.001,37.87343669]
[1772638524704,34.40010878,92.08,92.001,37.87343669]
[1772638524901,27.12140166,92.079,92.001,37.87343669]
[1772638525103,27.12140166,92.079,92.001,28.09243669]
[1772638525596,27.12140166,92.059,91.961,28.09243669]
[1772638525802,27.12140166,92.049,91.981,28.09243669]
[1772638526397,7.27870712,92.03,91.958,28.09243669]
[1772638526794,27.12140166,92.049,91.96,28.09243669]
[1772638526997,151.938,92.131,91.981,28.09243669]
[1772638526998,7.27870712,92.07,91.981,28.09243669]
[1772638527697,7.27870712,92.07,91.993,9.781]
[1772638527897,27.12140166,92.069,91.981,28.09243669]
[1772638528296,27.12140166,92.069,91.992,9.782]
[1772638528297,9.775,92.056,91.992,9.782]
[1772638528702,27.12140166,92.069,91.993,28.09243669]
[1772638528902,7.27870712,92.07,92.007,28.09243669]
[1772638529300,27.12140166,92.069,91.981,28.09243669]
[1772638529507,7.27870712,92.05,91.981,28.09243669]
[1772638529801,27.12140166,92.049,91.959,28.09243669]
[1772638530105,7.27870712,92.03,91.966,9.784]
[1772638530506,27.12140166,92.049,91.974,9.784]
[1772638530707,27.12140166,92.049,91.975,28.09243669]
[1772638532103,9.778,92.026,91.941,28.09243669]
[1772638532509,27.12140166,92.049,91.941,28.09243669]
[1772638533513,9.777,92.035,91.975,9.783]
[1772638533710,27.12140166,92.029,91.941,28.09243669]
[1772638533916,9.781,92.002,91.943,9.787]
[1772638534308,27.12140166,92.029,91.941,28.09243669]
[1772638534505,27.12140166,92.019,91.941,28.09243669]
[1772638534706,27.12140166,91.999,91.89,7.29465475]
[1772638535004,27.12140166,91.999,91.891,28.09243669]
[1772638535213,27.12140166,91.999,91.935,9.788]
[1772638535514,27.12140166,91.999,91.931,28.09243669]
[1772638537014,27.12140166,92.027,91.91,7.29465475]
[1772638537204,7.29465475,92.0,91.911,28.09243669]
[1772638537409,34.41605641,92.0,91.911,28.09243669]
[1772638537711,36.90240166,91.999,91.935,9.788]
[1772638537909,34.41605641,92.02,91.932,28.09243669]
[1772638538109,27.12140166,92.019,91.932,28.09243669]
[1772638538310,27.12140166,92.019,91.91,7.29465475]
[1772638538311,27.12140166,92.019,91.935,28.09243669]
[1772638539113,7.29465475,92.03,91.951,28.09243669]
[1772638539510,27.12140166,92.029,91.951,28.09243669]
[1772638542220,9.778,92.026,91.965,9.785]
[1772638543219,27.12140166,92.029,91.972,9.784]
[1772638543520,27.12140166,92.029,91.951,28.09243669]
[1772638543718,27.12140166,92.029,91.952,9.786]
[1772638544020,27.12140166,92.029,91.951,28.09243669]
[1772638544223,9.782,91.992,91.931,9.788]
[1772638544921,9.783,91.985,91.928,28.09243669]
[1772638545922,9.783,91.985,91.929,9.788]
[1772638546522,27.12140166,91.989,91.929,9.788]
[1772638546721,7.29465475,92.01,91.928,28.09243669]
[1772638547027,27.12140166,92.012,91.938,28.09243669]
[1772638547221,7.29465475,92.04,91.95,7.29465475]
[1772638547425,7.29465475,92.04,91.951,28.09243669]
[1772638548123,13.26297871,92.085,91.93,7.29465475]
[1772638548124,7.29465475,92.03,91.931,28.09243669]
[1772638548426,9.778,92.024,91.951,28.09243669]
[1772638548626,7.29465475,92.03,91.951,28.09243669]
[1772638548819,27.12140166,92.041,91.951,28.09243669]
[1772638549020,9.778,92.028,91.951,28.09243669]
[1772638549424,27.12140166,92.041,91.951,28.09243669]
[1772638549720,9.779,92.02,91.955,26.95959313]
[1772638549920,27.12140166,92.041,91.955,26.95959313]
[1772638550121,9.778,92.029,91.972,9.784]
[1772638550326,28.50799254,92.028,91.955,26.95959313]
[1772638552831,7.29465475,92.03,91.955,26.95959313]
[1772638553329,9.779,92.022,91.961,9.785]
[1772638554026,9.779,92.015,91.961,9.785]
[1772638554234,35.80264729,92.01,91.934,26.95959313]
[1772638554531,28.50799254,92.01,91.934,26.95959313]
[1772638554727,7.29465475,92.03,91.934,26.95959313]
[1772638554932,7.29465475,92.03,91.955,26.95959313]
[1772638555532,35.80264729,92.03,91.955,26.95959313]
[1772638556026,28.50799254,92.029,91.962,9.785]
[1772638556226,28.50799254,92.029,91.931,26.95959313]
[1772638556634,28.50799254,92.029,91.95,9.786]
[1772638557433,28.50799254,92.029,91.957,9.785]
[1772638558827,9.78,92.007,91.957,9.785]
[1772638559925,9.779,92.015,91.957,9.785]
[1772638560539,9.78,92.006,91.95,26.95959313]
[1772638560734,7.29465475,92.0,91.911,26.95959313]
[1772638560941,28.50799254,91.999,91.911,26.95959313]
[1772638561240,28.50799254,91.999,91.874,12.82892264]
[1772638561241,28.50799254,92.029,91.934,26.95959313]
[1772638561940,28.50799254,92.049,91.964,26.95959313]
[1772638562233,28.50799254,92.069,91.992,26.95959313]
[1772638563041,9.774,92.068,92.005,9.78]
[1772638563440,28.50799254,92.069,91.992,26.95959313]
[1772638563636,28.50799254,92.093,92.001,26.95959313]
[1772638564436,28.50799254,92.093,92.028,9.778]
[1772638565038,28.50799254,92.089,92.001,26.95959313]
[1772638565343,28.50799254,92.069,91.976,26.95959313]
[1772638565839,28.50799254,92.049,91.976,26.95959313]
[1772638566237,9.778,92.032,91.976,26.95959313]
[1772638567242,7.29465475,92.05,91.977,26.95959313]
[1772638567440,28.50799254,92.049,91.977,26.95959313]
[1772638567743,28.50799254,92.049,91.941,26.95959313]
[1772638568049,28.50799254,92.009,91.92,7.29465475]
[1772638568340,28.50799254,92.009,91.917,26.95959313]
[1772638568341,7.29465475,91.97,91.891,26.95959313]
[1772638568546,9.784,91.969,91.903,9.791]
[1772638568742,28.50799254,91.989,91.904,26.95959313]
[1772638569139,9.783,91.976,91.906,9.791]
[1772638569448,9.783,91.976,91.904,26.95959313]
[1772638569647,7.29465475,91.97,91.904,26.95959313]
[1772638569848,9.784,91.969,91.904,26.95959313]
[1772638570244,38.29199254,91.969,91.904,26.95959313]
[1772638570749,7.29465475,91.95,91.884,9.793]
[1772638570945,7.29465475,91.95,91.845,12.82892264]
[1772638570946,28.50799254,91.982,91.891,26.95959313]
[1772638571249,7.29465475,91.97,91.891,26.95959313]
[1772638571552,7.29465475,91.95,91.87,26.95959313]
[1772638571945,9.786,91.949,91.871,26.95959313]
[1772638572142,28.50799254,91.948,91.871,26.95959313]
[1772638572454,9.787,91.941,91.871,26.95959313]
[1772638572750,7.29465475,91.95,91.871,26.95959313]
[1772638572949,35.80264729,91.97,91.871,26.95959313]
[1772638573149,35.80264729,91.99,91.906,26.95959313]
[1772638573852,7.29465475,92.01,91.922,26.95959313]
[1772638574347,7.29465475,92.03,91.938,26.95959313]
[1772638574844,7.29465475,92.03,91.954,26.95959313]
[1772638575444,7.29465475,92.03,91.962,9.785]
[1772638576257,28.50799254,92.037,91.965,36.74459313]
[1772638576552,28.50799254,92.029,91.965,26.95959313]
[1772638576748,7.29465475,92.03,91.965,26.95959313]
[1772638577152,28.50799254,92.052,91.965,26.95959313]
[1772638577451,7.29465475,92.05,91.967,26.95959313]
[1772638577953,28.50799254,92.052,91.967,26.95959313]
[1772638578148,7.29465475,92.07,91.992,26.95959313]
[1772638578554,9.774,92.069,91.993,9.782]
[1772638578754,24.7807784,92.068,91.992,26.95959313]
[1772638579250,7.29465475,92.07,92.003,9.781]
[1772638579444,7.29465475,92.07,91.992,26.95959313]
[1772638579650,9.775,92.059,91.992,26.95959313]
[1772638579846,32.07543315,92.07,91.992,26.95959313]
[1772638580651,24.7807784,92.069,91.992,26.95959313]
[1772638580851,9.776,92.047,91.992,26.95959313]
[1772638581050,24.7807784,92.069,91.992,26.95959313]
[1772638581356,24.7807784,92.069,91.97,7.29465475]
[1772638581357,24.7807784,92.069,91.994,24.61901457]
[1772638581758,7.29465475,92.05,91.971,24.61901457]
[1772638582056,7.29465475,92.05,91.981,24.61901457]
[1772638582459,24.7807784,92.072,91.981,24.61901457]
[1772638582658,7.29465475,92.06,91.981,24.61901457]
[1772638583054,9.775,92.059,91.993,9.782]
[1772638583255,9.775,92.059,91.993,34.40101457]
[1772638583558,24.7807784,92.072,91.994,24.61901457]
[1772638583759,9.774,92.069,91.996,27.66622561]
[1772638585061,9.772,92.079,91.996,27.66622561]
[1772638585265,26.07420615,92.093,92.001,27.66622561]
[1772638585561,9.77,92.099,92.021,27.66622561]
[1772638586257,9.77,92.099,92.028,9.778]
[1772638586463,9.77,92.099,91.98,7.29465475]
[1772638586464,7.29465475,92.08,92.006,27.66622561]
[1772638586851,26.07420615,92.079,91.971,9.65452354]
[1772638587057,9.775,92.06,91.972,27.66622561]
[1772638587354,17.06965475,92.06,91.972,27.66622561]
[1772638587961,9.775,92.051,91.984,27.66622561]
[1772638588257,7.29465475,92.06,91.984,27.66622561]
[1772638588458,7.29465475,92.04,91.962,27.66622561]
[1772638588653,26.07420615,92.037,91.968,9.784]
[1772638588849,26.07420615,92.037,91.962,27.66622561]
[1772638589958,33.3688609,92.05,91.962,27.66622561]
[1772638590460,9.777,92.033,91.962,27.66622561]
[1772638590851,9.778,92.024,91.962,27.66622561]
[1772638591053,7.29465475,92.03,91.962,27.66622561]
[1772638591657,26.07420615,92.029,91.951,9.786]
[1772638592265,9.78,92.009,91.942,9.787]
[1772638592764,9.781,92.001,91.942,9.787]
[1772638593066,26.07420615,92.029,91.949,27.66622561]
[1772638593559,26.07420615,92.029,91.93,7.29465475]
[1772638593560,26.07420615,92.029,91.968,27.66622561]
[1772638594065,35.85220615,92.029,91.971,9.784]
[1772638594259,33.3688609,92.05,91.972,27.66622561]
[1772638594660,26.07420615,92.049,91.972,27.66622561]
[1772638594965,26.07420615,92.029,91.931,27.66622561]
[1772638595166,9.779,92.016,91.951,9.786]
[1772638595464,26.07420615,92.029,91.931,27.66622561]
[1772638595865,26.07420615,92.029,91.933,27.66622561]
[1772638596567,9.78,92.01,91.933,27.66622561]
[1772638597265,9.78,92.01,91.943,27.66622561]
[1772638597460,26.07420615,92.029,91.943,27.66622561]
[1772638597868,7.29270481,92.06,91.973,27.66622561]
[1772638598367,26.07420615,92.07,91.996,27.66622561]
[1772638598561,7.29270481,92.08,91.996,27.66622561]
[1772638598867,26.07420615,92.079,92.001,27.66622561]
[1772638599566,9.774,92.065,92.001,27.66622561]
[1772638599961,9.773,92.07,92.001,27.66622561]
[1772638600464,9.775,92.052,91.983,9.783]
[1772638600668,26.07420615,92.07,91.984,27.66622561]
[1772638601068,7.29270481,92.06,91.984,27.66622561]
[1772638601270,26.07420615,92.059,91.984,27.66622561]
[1772638601666,9.776,92.048,91.984,27.66622561]
[1772638602065,26.07420615,92.059,91.984,27.66622561]
[1772638602367,9.778,92.031,91.966,27.66622561]
[1772638603262,26.07420615,92.031,91.966,27.66622561]
[1772638603463,26.07420615,92.031,91.949,9.786]
[1772638603658,7.29270481,92.02,91.949,9.786]
[1772638603962,26.07420615,92.031,91.961,27.66622561]
[1772638604162,26.07420615,92.052,91.961,27.66622561]
[1772638604566,26.07420615,92.052,91.98,9.783]
[1772638604767,26.07420615,92.052,91.961,27.66622561]
[1772638606370,9.778,92.031,91.97,9.784]
[1772638607675,9.777,92.04,91.98,27.66622561]
[1772638607971,26.07420615,92.073,91.98,27.66622561]
[1772638608170,26.07420615,92.073,91.96,7.29270481]
[1772638608171,9.772,92.088,92.022,27.66622561]
[1772638608368,26.07420615,92.094,92.022,27.66622561]
[1772638608568,9.774,92.064,92.002,9.781]
[1772638608873,23.11289609,92.079,92.001,24.62317817]
[1772638609470,23.11289609,92.079,91.98,7.29270481]
[1772638609471,9.773,92.075,92.013,24.62317817]
[1772638609672,23.11289609,92.099,92.013,24.62317817]
[1772638610167,9.773,92.079,92.016,9.779]
[1772638610369,23.11289609,92.079,91.992,24.62317817]
[1772638610763,23.11289609,92.059,91.96,7.29270481]
[1772638610968,23.11289609,92.059,91.856,31.66221288]
[1772638610969,9.777,92.035,91.974,9.784]
[1772638611169,7.29270481,92.04,91.961,24.62317817]
[1772638611170,23.11289609,92.039,91.961,24.62317817]
[1772638611974,9.778,92.027,91.965,9.784]
[1772638612275,23.11289609,92.019,91.939,24.62317817]
[1772638612868,23.11289609,92.039,91.958,34.40817817]
[1772638613072,23.11289609,92.039,91.958,24.62317817]
[1772638613272,23.11289609,92.059,91.978,24.62317817]
[1772638613472,23.11289609,92.049,91.978,24.62317817]
[1772638613671,23.11289609,92.049,91.957,24.62317817]
[1772638613878,23.11289609,92.029,91.957,24.62317817]
[1772638614078,9.779,92.019,91.959,9.785]
[1772638614768,9.776,92.046,91.982,34.40617817]
[1772638614976,9.776,92.046,91.93,7.29270481]
[1772638614977,7.29270481,92.05,91.983,24.62317817]
[1772638615367,7.29270481,92.07,91.983,24.62317817]
[1772638615571,9.776,92.046,91.983,24.62317817]
[1772638616373,9.777,92.038,91.983,24.62317817]
[1772638616674,23.11289609,92.073,91.983,24.62317817]
[1772638616877,23.11289609,92.073,92.001,9.781]
[1772638617277,7.29270481,92.08,92.002,24.62317817]
[1772638617569,9.774,92.069,92.002,24.62317817]
[1772638617769,23.11289609,92.079,92.002,24.62317817]
[1772638617970,23.11289609,92.079,91.981,24.62317817]
[1772638618173,9.776,92.045,91.987,9.782]
[1772638618575,23.11289609,92.058,91.981,24.62317817]
[1772638619274,23.11289609,92.039,91.959,24.62317817]
[1772638619469,23.11289609,92.039,91.959,34.40817817]
[1772638619870,9.779,92.02,91.959,24.62317817]
[1772638620271,9.779,92.02,91.936,24.62317817]
[1772638620272,23.11289609,92.019,91.936,24.62317817]
[1772638620472,23.11289609,92.019,91.937,24.62317817]
[1772638621072,23.11289609,92.019,91.942,34.41017817]
[1772638621778,23.11289609,92.009,91.942,24.62317817]
[1772638622280,23.11289609,92.029,91.942,24.62317817]
[1772638622881,9.779,92.017,91.957,9.785]
[1772638623079,23.11289609,92.029,91.942,24.62317817]
[1772638624079,23.11289609,92.029,91.92,7.29270481]
[1772638624080,23.11289609,92.029,91.954,24.62317817]
[1772638624675,9.778,92.028,91.964,24.62317817]
[1772638624877,7.29270481,92.07,91.964,24.62317817]
[1772638625082,9.775,92.059,91.995,24.62317817]
[1772638625782,19.541,92.099,91.974,24.62317817]
[1772638625783,23.11289609,92.048,91.974,24.62317817]
[1772638627282,9.778,92.028,91.974,24.62317817]
[1772638627482,23.11289609,92.048,91.974,24.62317817]
[1772638628076,9.778,92.028,91.974,24.62317817]
[1772638628990,9.779,92.017,91.958,9.785]
[1772638629284,23.11289609,92.029,91.952,24.62317817]
[1772638629285,9.78,92.009,91.952,24.62317817]
[1772638629588,9.78,92.009,91.913,12.88336138]
[1772638629589,23.11289609,92.009,91.931,24.62317817]
[1772638629785,9.78,92.008,91.945,9.787]
[1772638630191,7.29270481,92.01,91.931,24.62317817]
[1772638630388,23.11289609,92.029,91.931,24.62317817]
[1772638630591,23.11289609,92.009,91.931,24.62317817]
[1772638630788,23.11289609,92.028,91.931,24.62317817]
[1772638630987,7.29270481,92.02,91.931,24.62317817]
[1772638631190,23.11289609,92.019,91.931,24.62317817]
[1772638631494,7.29270481,92.0,91.931,24.62317817]
[1772638631689,9.781,91.997,91.942,9.787]
[1772638631989,23.11289609,92.019,91.943,24.62317817]
[1772638632191,7.29270481,92.02,91.958,24.62317817]
[1772638632397,7.29270481,92.04,91.958,24.62317817]
[1772638633392,23.11289609,92.019,91.935,24.62317817]
[1772638633795,9.78,92.004,91.944,9.787]
[1772638634090,7.29270481,92.01,91.945,24.62317817]
[1772638636287,23.11289609,92.009,91.919,24.62317817]
[1772638636491,7.29270481,92.0,91.919,24.62317817]
[1772638636894,23.11289609,92.009,91.94,24.62317817]
[1772638637291,23.11289609,92.009,91.901,12.88336138]
[1772638637292,9.784,91.97,91.92,24.62317817]
[1772638637496,7.29270481,91.95,91.896,24.62317817]
[1772638638394,7.29270481,91.95,91.859,10.02538376]
[1772638638395,24.4577672,91.949,91.876,24.62317817]
[1772638638800,7.29270481,91.93,91.86,23.9024095]
[1772638638996,7.29270481,91.94,91.86,23.9024095]
[1772638639498,24.4577672,91.939,91.86,23.9024095]
[1772638640606,7.29270481,91.94,91.88,23.9024095]
[1772638641500,9.788,91.936,91.869,23.9024095]
[1772638641701,24.4577672,91.939,91.869,23.9024095]
[1772638642099,34.2477672,91.918,91.859,10.02538376]
[1772638642305,24.4577672,91.917,91.859,10.02538376]
[1772638643002,24.4577672,91.917,91.81,7.29270481]
[1772638643003,24.4577672,91.949,91.841,23.9024095]
[1772638643204,24.4577672,91.937,91.851,23.9024095]
[1772638643707,24.4577672,91.937,91.854,24.19368909]
[1772638644103,9.791,91.903,91.838,9.798]
[1772638644408,9.791,91.903,91.83,7.29270481]
[1772638644409,29.95051918,91.94,91.839,24.19368909]
[1772638644607,22.65781437,91.939,91.839,24.19368909]
[1772638644809,22.65781437,91.939,91.859,24.19368909]
[1772638645509,9.789,91.926,91.863,24.19368909]
[1772638645902,22.65781437,91.939,91.863,24.19368909]
[1772638646313,7.29270481,91.94,91.874,24.19368909]
[1772638646606,22.65781437,91.939,91.874,24.19368909]
[1772638647405,9.789,91.92,91.852,24.19368909]
[1772638648007,22.65781437,91.939,91.852,24.19368909]
[1772638648502,22.65781437,91.939,91.855,24.19368909]
[1772638648704,22.65781437,91.919,91.833,24.19368909]
[1772638649105,22.65781437,91.965,91.833,24.19368909]
[1772638649315,7.29270481,91.98,91.881,24.19368909]
[1772638649514,22.65781437,91.99,91.901,24.19368909]
[1772638649910,22.65781437,91.979,91.901,24.19368909]
[1772638650407,9.782,91.99,91.914,24.19368909]
[1772638651016,9.782,91.99,91.917,24.19368909]
[1772638651709,22.65781437,92.044,91.968,24.19368909]
[1772638651911,22.65781437,92.067,91.968,24.19368909]
[1772638652319,7.29270481,92.05,91.968,24.19368909]
[1772638652618,29.95051918,92.09,91.981,24.19368909]
[1772638652912,22.65781437,92.138,92.041,24.19368909]
[1772638653211,22.65781437,92.159,92.061,24.19368909]
[1772638653406,22.65781437,92.139,92.038,24.19368909]
[1772638653610,7.29270481,92.16,92.038,24.19368909]
[1772638653611,7.29270481,92.1,92.038,24.19368909]
[1772638653809,7.29270481,92.15,92.041,24.19368909]
[1772638654011,7.29270481,92.15,92.058,24.19368909]
[1772638654317,7.29270481,92.13,92.058,24.19368909]
[1772638654511,22.65781437,92.149,92.058,24.19368909]
[1772638655011,7.29270481,92.16,92.058,24.19368909]
[1772638655213,22.65781437,92.159,92.075,24.19368909]
[1772638655516,7.29270481,92.16,91.993,152.165]
[1772638655517,29.95051918,92.14,92.041,24.19368909]
[1772638655712,29.95051918,92.14,92.045,24.19368909]
[1772638656117,124.0,92.18,92.045,24.19368909]
[1772638656118,7.29270481,92.12,92.045,24.19368909]
[1772638656315,29.95051918,92.12,92.045,24.19368909]
[1772638656517,7.28033848,92.11,92.045,24.19368909]
[1772638656714,22.65781437,92.109,92.025,9.778]
[1772638656917,22.65781437,92.109,92.025,33.97168909]
[1772638657118,22.65781437,92.109,92.026,24.19368909]
[1772638657416,151.879,92.167,91.972,152.2]
[1772638657417,7.28033848,92.15,92.051,24.19368909]
[1772638657618,22.65781437,92.148,92.051,24.19368909]
[1772638657814,7.28033848,92.13,92.051,24.19368909]
[1772638658020,22.65781437,92.148,92.051,24.19368909]
[1772638658726,9.767,92.135,92.054,24.19368909]
[1772638659022,22.65781437,92.129,92.054,24.19368909]
[1772638659317,7.28033848,92.15,92.054,24.19368909]
[1772638659318,22.65781437,92.149,92.054,24.19368909]
[1772638659519,22.65781437,92.129,92.054,24.19368909]
[1772638659723,7.28033848,92.11,92.054,24.19368909]
[1772638659924,7.28033848,92.11,92.011,24.19368909]
[1772638660619,7.28033848,92.11,92.03,24.19368909]
[1772638660816,22.65781437,92.109,92.03,24.19368909]
[1772638661416,22.65781437,92.179,92.071,24.19368909]
[1772638661725,7.28033848,92.19,92.091,24.19368909]
[1772638662020,7.28033848,92.19,92.043,152.082]
[1772638662021,7.28033848,92.17,92.081,24.19368909]
[1772638662212,22.65781437,92.169,92.081,24.19368909]
[1772638662419,7.28033848,92.15,92.081,24.19368909]
[1772638663017,9.765,92.149,92.081,24.19368909]
[1772638663218,7.28033848,92.17,92.081,24.19368909]
[1772638664222,9.764,92.158,92.081,24.19368909]
[1772638664925,22.65781437,92.23,92.135,24.19368909]
[1772638665126,22.65781437,92.258,92.161,24.19368909]
[1772638665424,22.65781437,92.258,92.164,24.19368909]
[1772638666021,7.28033848,92.24,92.167,24.19368909]
[1772638666226,7.28033848,92.2,92.131,24.19368909]
[1772638666420,9.758,92.218,92.131,24.19368909]
[1772638666624,22.65781437,92.209,92.131,24.19368909]
[1772638666820,7.28033848,92.19,92.131,24.19368909]
[1772638667722,7.28033848,92.21,92.131,24.19368909]
[1772638667922,7.28033848,92.22,92.131,24.19368909]
[1772638668224,22.65781437,92.233,92.131,24.19368909]
[1772638668426,7.28033848,92.21,92.132,21.7960817]
[1772638668827,22.57969383,92.209,92.132,21.7960817]
[1772638669026,7.28033848,92.19,92.132,21.7960817]
[1772638669224,29.86003231,92.19,92.091,21.7960817]
[1772638669524,22.57969383,92.229,92.138,21.7960817]
[1772638670022,22.57969383,92.229,92.144,21.7960817]
[1772638670619,22.57969383,92.229,92.146,21.7960817]
[1772638671131,9.754,92.256,92.151,21.7960817]
[1772638671132,7.28033848,92.25,92.151,21.7960817]
[1772638671331,298.0,92.29,92.1,7.28033848]
[1772638671332,7.28033848,92.27,92.192,21.7960817]
[1772638671624,298.0,92.311,92.192,21.7960817]
[1772638671625,7.28033848,92.3,92.192,21.7960817]
[1772638671829,7.28033848,92.3,92.224,9.757]
[1772638672030,7.28033848,92.28,92.216,21.7960817]
[1772638672233,7.28033848,92.26,92.181,21.7960817]
[1772638672433,7.28033848,92.26,92.184,21.7960817]
[1772638672832,22.57969383,92.279,92.184,21.7960817]
[1772638673031,7.28033848,92.26,92.184,21.7960817]
[1772638673533,7.28033848,92.24,92.159,21.7960817]
[1772638673839,7.28033848,92.25,92.159,21.7960817]
[1772638674428,7.28033848,92.25,92.173,21.7960817]
[1772638675435,7.28033848,92.25,92.178,21.7960817]
[1772638675436,17.03433848,92.25,92.178,21.7960817]
[1772638676130,7.28033848,92.25,92.181,21.7960817]
[1772638677130,22.57969383,92.249,92.181,21.7960817]
[1772638677931,9.756,92.236,92.181,21.7960817]
[1772638678939,9.753,92.266,92.181,21.7960817]
[1772638679132,22.57969383,92.269,92.181,21.7960817]
[1772638679737,22.57969383,92.269,92.195,9.76]
[1772638680128,9.753,92.267,92.201,9.76]
[1772638680438,29.86003231,92.29,92.196,21.7960817]
[1772638680639,9.75,92.289,92.222,21.7960817]
[1772638680840,22.57969383,92.289,92.199,21.7960817]
[1772638681336,7.28033848,92.25,92.176,21.7960817]
[1772638681537,22.57969383,92.269,92.176,21.7960817]
[1772638681734,9.753,92.261,92.187,9.761]
[1772638681931,7.28033848,92.29,92.201,21.7960817]
[1772638682136,22.57969383,92.365,92.204,21.7960817]
[1772638682443,22.57969383,92.365,92.203,151.818]
[1772638682444,32.32369383,92.349,92.273,21.7960817]
[1772638682731,7.28033848,92.33,92.231,21.7960817]
[1772638682932,9.749,92.304,92.233,21.7960817]
[1772638683129,7.28033848,92.31,92.233,21.7960817]
[1772638684440,9.749,92.304,92.233,21.7960817]
[1772638685027,9.75,92.293,92.233,21.7960817]